bitfinex-derivatives/quotes_BTCF0:USTF0_20250402
["timestamp","ask_amount","ask_price","bid_price","bid_amount"]
[1743559824987,0.4786124,84879.0,84878.0,0.08247]
[1743559825184,0.4786124,84879.0,84855.0,0.4439]
[1743559825185,0.1178457,84855.0,84845.0,0.0348]
[1743559825391,0.48020571,84855.0,84849.0,0.0363]
[1743559825689,0.48668256,84855.0,84854.0,0.1183185]
[1743559826287,0.66164256,84855.0,84836.0,0.0589358]
[1743559826584,0.02244632,84854.0,84845.0,0.0363]
[1743559826791,0.4786582,84846.0,84845.0,0.0709]
[1743559826991,0.48029821,84846.0,84845.0,0.0709]
[1743559827285,0.49570087,84846.0,84845.0,0.1887596]
[1743559827494,0.36244001,84846.0,84845.0,0.2267596]
[1743559828491,0.4197231,84855.0,84850.0,0.0589258]
[1743559828492,0.1178495,84853.0,84850.0,0.0589258]
[1743559828686,0.1178495,84853.0,84852.0,0.1178497]
[1743559828888,0.25388299,84852.0,84851.0,0.0736]
[1743559829185,0.1178499,84852.0,84851.0,0.0372]
[1743559829386,0.4786499,84852.0,84851.0,0.0372]
[1743559829581,0.1178651,84841.0,84840.0,0.0364]
[1743559829786,0.4786651,84841.0,84840.0,0.0364]
[1743559829987,0.4786651,84841.0,84838.0,0.03767148]
[1743559829988,0.1178679,84839.0,84838.0,0.15554038]
[1743559830182,0.4786679,84839.0,84838.0,0.15554038]
[1743559830383,0.61416649,84839.0,84838.0,0.03767148]
[1743559830585,0.68536649,84839.0,84838.0,0.03767148]
[1743559830789,0.68536649,84839.0,84838.0,0.15554078]
[1743559830987,0.71749859,84839.0,84838.0,0.00047148]
[1743559831286,0.1178734,84836.0,84826.0,0.117885]
[1743559831487,0.3608,84827.0,84806.0,0.00047166]
[1743559831691,0.0712,84835.0,84810.0,0.0348]
[1743559831692,0.3608,84817.0,84810.0,0.0348]
[1743559831892,0.3608,84811.0,84810.0,0.0348]
[1743559832288,0.1179124,84807.0,84806.0,0.00047166]
[1743559832483,0.4894904,84811.0,84809.0,0.1179096]
[1743559832484,0.0712,84810.0,84809.0,0.1179096]
[1743559832895,0.1941777,84810.0,84809.0,0.1179096]
[1743559834304,0.0836198,84810.0,84809.0,0.1179096]
[1743559834497,0.08501981,84810.0,84809.0,0.1193096]
[1743559834690,0.08601981,84810.0,84809.0,0.1543096]
[1743559834894,0.08701981,84810.0,84809.0,0.1543096]
[1743559835089,0.4304,84827.0,84816.0,0.0589495]
[1743559835291,0.4304,84827.0,84818.0,0.1178971]
[1743559835692,0.13531826,84819.0,84818.0,0.1889971]
[1743559835895,0.13531826,84819.0,84812.0,0.3608]
[1743559836094,0.13531826,84819.0,84805.0,0.1179138]
[1743559836095,0.1179119,84808.0,84805.0,0.1179138]
[1743559836295,0.4303,84807.0,84805.0,0.1179138]
[1743559836494,0.55336561,84807.0,84806.0,0.11838546]
[1743559837000,0.5482124,84807.0,84806.0,0.00047166]
[1743559837199,0.67995189,84807.0,84806.0,0.00047166]
[1743559837398,0.6809119,84807.0,84806.0,0.00047166]
[1743559838000,0.6809119,84807.0,84806.0,0.00147166]
[1743559838197,0.5629995,84807.0,84806.0,0.00147166]
[1743559838396,0.3201119,84807.0,84806.0,0.11938546]
[1743559839312,0.3521995,84807.0,84800.0,0.005]
[1743559839498,0.3521995,84807.0,84792.0,0.005]
[1743559839499,0.3608,84794.0,84760.0,0.0589886]
[1743559839802,0.7216,84765.0,84764.0,0.12297]
[1743559839992,0.36176001,84765.0,84764.0,0.12357]
[1743559840301,0.60375414,84765.0,84764.0,0.12357]
[1743559840498,0.60375414,84765.0,84764.0,0.0056]
[1743559840687,0.60375414,84765.0,84764.0,0.1229722]
[1743559840888,0.60375414,84765.0,84764.0,0.00564]
[1743559841088,0.67435414,84765.0,84764.0,0.005]
[1743559842011,0.67535414,84765.0,84764.0,0.005]
[1743559842402,0.48678334,84765.0,84764.0,0.1229722]
[1743559842602,0.12598334,84765.0,84764.0,0.1236122]
[1743559843102,0.12598334,84765.0,84764.0,0.00564]
[1743559843304,0.12698334,84765.0,84762.0,0.11938546]
[1743559843499,0.0364,84764.0,84742.0,0.00047202]
[1743559843701,0.8396014,84743.0,84742.0,0.00047202]
[1743559843900,0.8396014,84743.0,84720.0,0.29424711]
[1743559843901,0.1180112,84736.0,84720.0,0.15]
[1743559844110,0.48045121,84736.0,84721.0,0.0357]
[1743559844321,0.1180237,84727.0,84721.0,0.0357]
[1743559844511,0.00160001,84727.0,84726.0,0.11849721]
[1743559844709,0.3608,84735.0,84734.0,0.118014]
[1743559844902,0.3608,84744.0,84740.0,0.1180055]
[1743559844903,0.36244001,84744.0,84740.0,0.1180055]
[1743559845106,0.13527617,84743.0,84742.0,0.1180028]
[1743559845322,0.00256001,84743.0,84742.0,0.1100028]
[1743559845614,0.00256001,84743.0,84742.0,0.33482826]
[1743559846413,0.00256001,84743.0,84742.0,0.22938826]
[1743559846719,0.12944365,84743.0,84742.0,0.22938826]
[1743559847411,0.12844365,84743.0,84742.0,0.22938826]
[1743559847605,0.12844365,84743.0,84705.0,0.059027]
[1743559847606,0.1180237,84727.0,84705.0,0.059027]
[1743559847810,0.1180321,84721.0,84715.0,0.1180396]
[1743559848009,0.11959211,84721.0,84710.0,0.0594958]
[1743559848213,0.25324606,84721.0,84711.0,0.1180457]
[1743559848415,0.25324606,84721.0,84710.0,0.0004722]
[1743559848614,0.25324606,84721.0,84712.0,0.1180443]
[1743559848816,0.25324606,84721.0,84710.0,0.0004722]
[1743559849117,0.25324606,84721.0,84712.0,0.1180437]
[1743559849421,0.25324606,84721.0,84711.0,0.1180448]
[1743559849623,0.40324606,84721.0,84710.0,0.0004722]
[1743559849832,0.1180599,84701.0,84700.0,0.105]
[1743559850016,0.1180683,84695.0,84673.0,0.3608]
[1743559850317,0.13793524,84695.0,84673.0,0.3608]
[1743559850510,0.13793524,84695.0,84694.0,0.1180697]
[1743559850713,0.61680354,84695.0,84694.0,0.1180697]
[1743559850907,0.72160354,84695.0,84694.0,0.1180697]
[1743559851324,0.49873524,84695.0,84694.0,0.23745516]
[1743559851621,0.61680354,84695.0,84694.0,0.23745516]
[1743559851815,0.49873524,84695.0,84694.0,0.23745516]
[1743559852224,0.61680354,84695.0,84694.0,0.1180697]
[1743559852417,0.49873524,84695.0,84694.0,0.1180697]
[1743559852719,0.49873524,84695.0,84694.0,0.23745516]
[1743559857927,0.00156001,84695.0,84694.0,0.23745516]
[1743559858227,0.3608,84702.0,84701.0,0.1180599]
[1743559858415,0.36236001,84702.0,84701.0,0.1180599]
[1743559858617,0.36236001,84702.0,84701.0,0.23744536]
[1743559859125,0.36097704,84709.0,84708.0,0.1180502]
[1743559859326,0.36213704,84709.0,84708.0,0.1186502]
[1743559859531,0.13213332,84709.0,84708.0,0.23803566]
[1743559860333,0.09373242,84709.0,84708.0,0.59883566]
[1743559860526,0.0004,84735.0,84724.0,0.0590135]
[1743559860527,0.3612,84735.0,84724.0,0.0590135]
[1743559860728,0.10546598,84732.0,84731.0,0.1180181]
[1743559861026,0.00072,84732.0,84731.0,0.1186981]
[1743559862521,0.00072,84732.0,84731.0,0.1560981]
[1743559862922,0.00572,84732.0,84731.0,0.1717224]
[1743559863127,0.005,84732.0,84731.0,0.1717224]
[1743559863328,0.005,84732.0,84731.0,0.2065224]
[1743559863517,0.0004,84735.0,84734.0,0.118014]
[1743559863827,0.0004,84735.0,84734.0,0.1343028]
[1743559864728,0.00017704,84740.0,84739.0,0.118007]
[1743559864921,0.00017704,84740.0,84739.0,0.1342958]
[1743559864922,0.00089704,84740.0,84739.0,0.1342958]
[1743559865528,0.00089704,84740.0,84739.0,0.2063958]
[1743559865932,0.00089704,84740.0,84739.0,0.20638026]
[1743559866229,0.10474598,84761.0,84739.0,0.20638026]
[1743559866230,0.10474598,84761.0,84760.0,0.1179778]
[1743559866419,0.10538598,84761.0,84760.0,0.1186178]
[1743559866623,0.24006034,84761.0,84760.0,0.1341905]
[1743559867130,1e-08,84767.0,84766.0,0.1179694]
[1743559867335,0.3608,84779.0,84775.0,0.1179569]
[1743559867531,0.17626055,84776.0,84775.0,0.1187969]
[1743559867728,0.30722599,84776.0,84775.0,0.13437181]
[1743559867927,0.42518149,84776.0,84775.0,0.01641491]
[1743559868132,0.42518149,84776.0,84775.0,0.13437181]
[1743559868828,0.13180544,84776.0,84773.0,0.10221651]
[1743559869029,0.0359,84775.0,84774.0,0.16911113]
[1743559869229,0.03650001,84775.0,84774.0,0.16971113]
[1743559869534,0.286146,84775.0,84774.0,0.16971113]
[1743559869934,0.286146,84775.0,84774.0,0.1541583]
[1743559870530,0.286146,84775.0,84774.0,0.0362]
[1743559870727,0.286146,84775.0,84774.0,0.0356]
[1743559871031,0.286146,84775.0,84774.0,0.03628]
[1743559871236,0.286146,84775.0,84774.0,0.0356]
[1743559871438,0.291146,84775.0,84774.0,0.0356]
[1743559871635,0.291146,84775.0,84774.0,0.03628]
[1743559871832,0.291146,84775.0,84774.0,0.1542383]
[1743559872035,0.291146,84775.0,84774.0,0.03628]
[1743559872233,0.291146,84775.0,84774.0,0.0356]
[1743559872939,0.291146,84775.0,84774.0,0.1535583]
[1743559873135,0.291146,84775.0,84774.0,0.1541583]
[1743559873925,0.291146,84775.0,84774.0,0.0006]
[1743559874134,0.1731891,84775.0,84765.0,0.3608]
[1743559874336,0.4787694,84766.0,84765.0,0.0006]
[1743559874540,0.4787694,84766.0,84751.0,0.1024]
[1743559874541,0.1179764,84761.0,84760.0,0.1179766]
[1743559874739,0.11857641,84761.0,84760.0,0.1186166]
[1743559875038,0.24805114,84761.0,84760.0,0.1186166]
[1743559875242,0.13007474,84761.0,84760.0,0.1186166]
[1743559875633,0.24805114,84761.0,84760.0,0.1186166]
[1743559875833,0.28575114,84761.0,84760.0,0.1910166]
[1743559876030,0.13007474,84761.0,84760.0,0.21648064]
[1743559877831,0.13207474,84761.0,84760.0,0.09850404]
[1743559878031,0.0589929,84755.0,84751.0,0.0378]
[1743559878245,0.4787875,84753.0,84752.0,0.00077704]
[1743559878447,0.47938751,84753.0,84752.0,0.00017704]
[1743559878740,0.1180014,84743.0,84742.0,0.00047202]
[1743559878927,0.47940141,84743.0,84742.0,0.00047202]
[1743559879132,0.60886229,84743.0,84742.0,0.00107202]
[1743559879333,0.60886229,84743.0,84742.0,0.00047202]
[1743559879546,0.68296229,84743.0,84742.0,0.00047202]
[1743559879742,0.68296229,84743.0,84742.0,0.00107202]
[1743559879942,0.68296229,84743.0,84742.0,0.00047202]
[1743559880842,0.0590041,84739.0,84710.0,0.0004722]
[1743559881041,0.0590041,84739.0,84715.0,0.1927398]
[1743559881042,0.8396237,84727.0,84715.0,0.1927398]
[1743559881241,0.84022371,84727.0,84710.0,0.1185192]
[1743559881443,0.1180441,84713.0,84710.0,0.0004722]
[1743559881647,0.11864411,84713.0,84712.0,0.1180435]
[1743559881839,0.118046,84711.0,84710.0,0.0004722]
[1743559882035,0.11864601,84711.0,84710.0,0.0004722]
[1743559882236,0.28537122,84711.0,84710.0,0.0004722]
[1743559882744,0.28537122,84711.0,84704.0,0.00017704]
[1743559882745,0.1180544,84705.0,84704.0,0.00017704]
[1743559883047,0.1180544,84705.0,84704.0,0.00077704]
[1743559883048,0.47945441,84705.0,84704.0,0.00077704]
[1743559883268,0.47945441,84705.0,84704.0,0.11823284]
[1743559883269,0.61125746,84705.0,84704.0,0.11823284]
[1743559883549,0.61125746,84705.0,84704.0,0.11883284]
[1743559884244,0.49320306,84705.0,84704.0,0.11883284]
[1743559885446,0.13240306,84705.0,84704.0,0.13422642]
[1743559885647,0.00060001,84705.0,84702.0,0.3608]
[1743559885947,0.00060001,84705.0,84704.0,0.1180558]
[1743559886145,0.17542055,84710.0,84709.0,0.1180488]
[1743559886343,0.21099307,84717.0,84716.0,0.118039]
[1743559886540,0.0359,84726.0,84718.0,0.0590177]
[1743559886848,0.00116,84735.0,84734.0,0.118014]
[1743559887047,0.00116,84735.0,84734.0,0.118814]
[1743559887944,0.1191726,84735.0,84734.0,0.0008]
[1743559888142,0.03676,84735.0,84734.0,0.118814]
[1743559889155,0.1547726,84735.0,84734.0,0.118814]
[1743559889450,0.03676,84735.0,84734.0,0.118814]
[1743559890246,0.03776,84735.0,84734.0,0.191414]
[1743559890643,0.03776,84735.0,84734.0,0.118814]
[1743559891247,0.03676,84735.0,84734.0,0.118814]
[1743559893951,0.27852739,84735.0,84734.0,0.118814]
[1743559894250,0.16051479,84735.0,84734.0,0.118814]
[1743559897140,0.15951479,84735.0,84734.0,0.118814]
[1743559897457,0.16051479,84735.0,84734.0,0.118814]
[1743559898450,0.16051479,84735.0,84726.0,0.00017704]
[1743559898451,0.1180237,84727.0,84726.0,0.00017704]
[1743559898750,0.4795037,84727.0,84726.0,0.00077704]
[1743559899058,0.61553249,84727.0,84726.0,0.00017704]
[1743559899259,0.61553249,84727.0,84726.0,0.11820214]
[1743559899457,0.61553249,84727.0,84726.0,0.00077704]
[1743559899757,0.61553249,84727.0,84726.0,0.00017704]
[1743559899950,0.65263249,84727.0,84726.0,0.00085704]
[1743559900550,0.65263249,84727.0,84726.0,0.00017704]
[1743559901858,0.1180558,84704.0,84703.0,0.038]
[1743559902044,0.4794958,84704.0,84703.0,0.0160651]
[1743559902247,0.48459552,84704.0,84703.0,0.1180572]
[1743559902448,0.48459552,84704.0,84703.0,0.1186972]
[1743559902852,0.55949552,84704.0,84703.0,0.1186972]
[1743559903057,0.55949552,84704.0,84703.0,0.1914972]
[1743559903559,0.55949552,84704.0,84703.0,0.1186972]
[1743559903762,0.56049552,84704.0,84703.0,0.1186972]
[1743559905960,0.67855132,84704.0,84703.0,0.1186972]
[1743559906360,0.56049552,84704.0,84703.0,0.1186972]
[1743559907163,0.56049552,84704.0,84703.0,0.13418979]
[1743559910558,0.56049552,84704.0,84703.0,0.01613259]
[1743559910763,0.92129552,84704.0,84703.0,0.13418979]
[1743559910963,0.92129552,84704.0,84703.0,0.13414979]
[1743559911165,0.92129552,84704.0,84703.0,0.17114979]
[1743559911566,0.92129552,84704.0,84703.0,0.20724979]
[1743559912965,0.00164,84704.0,84703.0,0.20724979]
[1743559913171,0.0379,84711.0,84710.0,0.1180474]
[1743559913365,0.03858,84711.0,84710.0,0.13413999]
[1743559913969,0.03858,84711.0,84710.0,0.20703999]
[1743559914165,0.07428,84711.0,84710.0,0.20703999]
[1743559914369,0.07528,84711.0,84710.0,0.20703999]
[1743559915467,0.00168,84711.0,84710.0,0.20703999]
[1743559915771,0.3608,84731.0,84724.0,0.0590138]
[1743559915975,0.36152,84731.0,84730.0,0.1180195]
[1743559916162,0.36152,84731.0,84730.0,0.13427209]
[1743559917162,0.0004,84735.0,84734.0,0.118014]
[1743559917359,0.00136001,84735.0,84734.0,0.23230659]
[1743559918170,0.25021624,84735.0,84734.0,0.01653259]
[1743559918368,0.25021624,84735.0,84734.0,0.01549259]
[1743559919071,0.25021624,84735.0,84734.0,0.01645259]
[1743559919575,0.25121624,84735.0,84734.0,0.01549259]
[1743559920162,0.25121624,84735.0,84722.0,0.00017704]
[1743559920365,0.25121624,84735.0,84723.0,0.01565615]
[1743559920366,0.3608,84729.0,84723.0,0.01565615]
[1743559920563,0.0353,84728.0,84727.0,0.1180237]
[1743559920763,0.03626001,84728.0,84727.0,0.13467985]
[1743559920963,0.03626001,84728.0,84727.0,0.21087985]
[1743559921577,0.16060696,84728.0,84727.0,0.13467985]
[1743559922673,0.27862926,84728.0,84727.0,0.01565615]
[1743559922975,0.27862926,84728.0,84727.0,0.13367985]
[1743559923564,0.16060696,84728.0,84727.0,0.13567985]
[1743559923974,0.16060696,84728.0,84727.0,0.21147985]
[1743559924376,0.0353,84728.0,84727.0,0.24837985]
[1743559924578,0.0004,84735.0,84734.0,0.118014]
[1743559924880,0.0004,84735.0,84734.0,0.13471015]
[1743559925681,0.0004,84735.0,84734.0,0.21061015]
[1743559925873,0.0014,84735.0,84734.0,0.21061015]
[1743559926377,0.0014,84735.0,84734.0,0.23625904]
[1743559927176,0.0014,84735.0,84734.0,0.23662888]
[1743559927479,0.0014,84735.0,84734.0,0.194954]
[1743559927680,0.0014,84735.0,84734.0,0.2366846]
[1743559929376,0.3608,84742.0,84734.0,0.1186706]
[1743559929576,0.039,84750.0,84749.0,0.1179931]
[1743559929775,0.1939917,84750.0,84749.0,0.01605023]
[1743559929982,0.321149,84750.0,84749.0,0.01605023]
[1743559930173,0.2031573,84750.0,84749.0,0.13508333]
[1743559930377,0.321149,84750.0,84749.0,0.01709023]
[1743559930578,0.35820901,84750.0,84749.0,0.01709023]
[1743559930786,0.357249,84750.0,84749.0,0.01605023]
[1743559931175,0.1179945,84748.0,84747.0,0.1179954]
[1743559931382,0.1180028,84742.0,84741.0,0.17717754]
[1743559931580,0.4788028,84742.0,84741.0,0.19335094]
[1743559931883,0.60964952,84742.0,84741.0,0.17717754]
[1743559932384,0.60964952,84742.0,84741.0,0.01624805]
[1743559932685,0.118031,84722.0,84721.0,0.0590155]
[1743559932886,0.0590145,84724.0,84721.0,0.07525548]
[1743559933084,0.0388,84723.0,84722.0,0.01623998]
[1743559933289,0.16845431,84723.0,84722.0,0.01623998]
[1743559933482,0.16845431,84723.0,84722.0,0.13427068]
[1743559934684,0.0399,84741.0,84730.0,0.1180195]
[1743559934983,0.3648,84742.0,84730.0,0.1180195]
[1743559934984,0.0396,84740.0,84730.0,0.16033213]
[1743559935176,0.0396,84740.0,84730.0,0.16129213]
[1743559935373,0.0396,84740.0,84730.0,0.23669213]
[1743559935576,0.0396,84740.0,84739.0,0.118007]
[1743559935881,0.1576056,84740.0,84739.0,0.13528698]
[1743559936074,0.29248739,84740.0,84739.0,0.13528698]
[1743559936985,0.29448739,84740.0,84739.0,0.13528698]
[1743559937192,0.29448739,84740.0,84739.0,0.01727998]
[1743559937381,0.69478739,84740.0,84739.0,0.01727998]
[1743559937583,0.1180168,84732.0,84731.0,0.11819514]
[1743559937787,0.4794568,84732.0,84731.0,0.01738141]
[1743559938080,0.49377137,84732.0,84713.0,0.0590213]
[1743559938284,0.118039,84717.0,84716.0,0.21919649]
[1743559938480,0.1180377,84717.0,84716.0,0.01716861]
[1743559938687,0.25051007,84717.0,84716.0,0.01716861]
[1743559938884,0.25051007,84717.0,84716.0,0.13520761]
[1743559939275,0.32711007,84717.0,84716.0,0.13520761]
[1743559939981,0.68791007,84717.0,84716.0,0.118999]
[1743559940587,0.68791007,84717.0,84716.0,0.13489011]
[1743559940789,0.68791007,84717.0,84716.0,0.1348902]
[1743559941382,0.56987237,84717.0,84716.0,0.1348902]
[1743559941581,0.56987237,84717.0,84716.0,0.1378902]
[1743559942389,0.68791007,84717.0,84716.0,0.1378902]
[1743559943390,0.56987237,84717.0,84716.0,0.1378902]
[1743559943986,0.68791007,84717.0,84716.0,0.0198512]
[1743559944292,0.68791007,84717.0,84716.0,0.0188912]
[1743559945000,0.56987237,84717.0,84716.0,0.1369302]
[1743559945178,0.20907237,84717.0,84716.0,0.1378902]
[1743559945493,0.039,84717.0,84716.0,0.16351465]
[1743559945981,0.03896001,84717.0,84716.0,0.16351465]
[1743559946383,0.29140168,84717.0,84716.0,0.04547565]
[1743559946591,0.29140168,84717.0,84716.0,0.04451565]
[1743559946886,0.29140168,84717.0,84716.0,0.04555565]
[1743559947191,0.29140168,84717.0,84716.0,0.0199312]
[1743559947492,0.29140168,84717.0,84716.0,0.1369302]
[1743559947793,0.29140168,84717.0,84716.0,0.1379302]
[1743559948183,0.13536398,84717.0,84716.0,0.4987302]
[1743559948388,0.0372,84718.0,84717.0,0.1180377]
[1743559948598,0.0372,84718.0,84717.0,0.2476289]
[1743559948900,0.0372,84718.0,84717.0,0.2485889]
[1743559949081,0.0364,84723.0,84722.0,0.1180307]
[1743559949286,0.0389,84732.0,84723.0,0.1180293]
[1743559949482,0.0756,84732.0,84724.0,0.4947721]
[1743559949682,0.0756,84732.0,84724.0,0.52137833]
[1743559949888,0.0756,84732.0,84724.0,0.59697833]
[1743559950482,0.0367,84732.0,84731.0,0.1180181]
[1743559950684,0.03766001,84732.0,84731.0,0.1349223]
[1743559950982,0.17099673,84732.0,84731.0,0.1349223]
[1743559951487,0.17099673,84732.0,84731.0,0.2105223]
[1743559951793,0.17099673,84732.0,84731.0,0.1730223]
[1743559951991,0.21069673,84732.0,84731.0,0.1730223]
[1743559952792,0.21069673,84732.0,84731.0,0.1750223]
[1743559954383,0.32871353,84732.0,84731.0,0.0189042]
[1743559954590,0.32871353,84732.0,84731.0,0.0169442]
[1743559954895,0.21069673,84732.0,84731.0,0.1349623]
[1743559955102,0.3608,84749.0,84739.0,0.118007]
[1743559955289,0.3608,84749.0,84739.0,0.16090398]
[1743559955290,0.0402,84746.0,84739.0,0.16090398]
[1743559955486,0.20969979,84753.0,84744.0,0.0589995]
[1743559955696,0.0402,84764.0,84763.0,0.1179736]
[1743559955996,0.0402,84764.0,84763.0,0.1355978]
[1743559956191,0.28734725,84764.0,84763.0,0.1355978]
[1743559956392,0.28734725,84764.0,84763.0,0.0176242]
[1743559956593,0.28734725,84764.0,84763.0,0.0159442]
[1743559957397,0.16937505,84764.0,84763.0,0.1340422]
[1743559957698,0.28734725,84764.0,84763.0,0.1357622]
[1743559957891,0.33224725,84764.0,84763.0,0.1357622]
[1743559958087,0.21427505,84764.0,84763.0,0.1357622]
[1743559959394,0.21427505,84764.0,84763.0,0.1196936]
[1743559959700,0.21427505,84764.0,84763.0,0.13558141]
[1743559961004,0.21427505,84764.0,84763.0,0.1196936]
[1743559961206,0.21427505,84764.0,84763.0,0.13553649]
[1743559962291,0.13317505,84764.0,84763.0,0.13553649]
[1743559962506,0.13317505,84764.0,84763.0,0.13555761]
[1743559963000,0.25114725,84764.0,84763.0,0.01758401]
[1743559963202,0.13317505,84764.0,84763.0,0.13555761]
[1743559963595,0.004,84764.0,84763.0,0.13555761]
[1743559965495,0.0396,84779.0,84771.0,0.1179625]
[1743559965700,4e-08,84772.0,84771.0,0.13554189]
[1743559965906,4e-08,84772.0,84771.0,0.52190783]
[1743559966606,4e-08,84772.0,84771.0,0.49634189]
[1743559967807,0.00500004,84772.0,84771.0,0.50903163]
[1743559968508,4e-08,84772.0,84771.0,0.58915456]
[1743559969904,4e-08,84772.0,84771.0,0.62865456]
[1743559970101,4e-08,84772.0,84771.0,0.53569456]
[1743559970300,4e-08,84772.0,84771.0,0.62841456]
[1743559974403,4e-08,84772.0,84771.0,0.65390898]
[1743559974612,4e-08,84772.0,84771.0,0.62841456]
[1743559975308,4e-08,84772.0,84771.0,0.62848871]
[1743559978806,4e-08,84772.0,84771.0,0.65401514]
[1743559982115,4e-08,84772.0,84771.0,0.52179514]
[1743559983922,0.11796114,84772.0,84771.0,0.16099514]
[1743559984219,0.11796114,84772.0,84761.0,0.0589877]
[1743559984220,0.1179714,84765.0,84761.0,0.0589877]
[1743559984411,0.1179714,84765.0,84764.0,0.1769549]
[1743559984720,0.60945156,84765.0,84764.0,0.1780749]
[1743559985024,0.49148016,84765.0,84764.0,0.1780749]
[1743559985204,0.13184016,84765.0,84764.0,0.1780749]
[1743559985404,4e-08,84772.0,84771.0,0.1179625]
[1743559985603,4e-08,84772.0,84771.0,0.1195225]
[1743559988516,0.00148004,84772.0,84771.0,0.1195225]
[1743559989223,4e-08,84772.0,84771.0,0.1195225]
[1743559989418,4e-08,84772.0,84771.0,0.1179625]
[1743559989809,4e-08,84772.0,84771.0,0.4787625]
[1743559990320,4e-08,84772.0,84771.0,0.5197625]
[1743559992425,4e-08,84772.0,84771.0,0.6105625]
[1743559994124,4e-08,84772.0,84771.0,0.6120425]
[1743559995911,4e-08,84772.0,84771.0,0.6532425]
[1743559996124,4e-08,84772.0,84771.0,0.66898718]
[1743559998326,4e-08,84772.0,84771.0,0.66884922]
[1743560002042,4e-08,84772.0,84771.0,0.6532425]
[1743560003312,4e-08,84772.0,84771.0,0.6122425]
[1743560003719,4e-08,84772.0,84771.0,0.4802425]
[1743560004425,4e-08,84772.0,84771.0,0.5702825]
[1743560004930,4e-08,84772.0,84771.0,0.4802425]
[1743560006125,0.117984,84764.0,84756.0,0.1179946]
[1743560006426,0.117984,84764.0,84755.0,0.10017704]
[1743560006427,0.00112001,84764.0,84763.0,0.46707849]
[1743560006628,0.13495376,84764.0,84763.0,0.46707849]
[1743560006927,0.53665376,84764.0,84763.0,0.46707849]
[1743560007430,0.53665376,84764.0,84763.0,0.46907849]
[1743560007630,0.53665376,84764.0,84763.0,0.33290691]
[1743560007824,0.17585376,84764.0,84763.0,0.33290691]
[1743560011926,0.17585376,84764.0,84763.0,0.1210654]
[1743560012725,0.65463776,84764.0,84763.0,0.00308]
[1743560012921,0.65463776,84764.0,84763.0,0.002]
[1743560013138,0.65463776,84764.0,84763.0,0.1199854]
[1743560013331,0.65463776,84764.0,84763.0,0.002]
[1743560013532,0.65463776,84764.0,84763.0,0.1210254]
[1743560014340,0.53665376,84764.0,84763.0,0.1210254]
[1743560016336,0.04150001,84764.0,84763.0,0.4818254]
[1743560016522,0.10526618,84767.0,84766.0,0.1179812]
[1743560016834,0.10526618,84768.0,84767.0,0.1179798]
[1743560017134,0.10526618,84768.0,84767.0,0.1629798]
[1743560017333,0.10526618,84768.0,84767.0,0.2070798]
[1743560017536,4e-08,84772.0,84771.0,0.1179743]
[1743560017736,4e-08,84772.0,84771.0,0.4799743]
[1743560017943,4e-08,84772.0,84771.0,0.49554438]
[1743560019927,4e-08,84772.0,84771.0,0.4799743]
[1743560021635,4e-08,84783.0,84782.0,0.117959]
[1743560021832,4e-08,84783.0,84782.0,0.569279]
[1743560022845,0.0444,84795.0,84794.0,0.1179423]
[1743560023140,0.04564001,84795.0,84794.0,0.1191823]
[1743560023339,0.17591576,84795.0,84794.0,0.1191823]
[1743560024137,0.17591576,84795.0,84794.0,0.1201823]
[1743560024138,0.18091576,84795.0,84794.0,0.1201823]
[1743560026031,0.18091576,84795.0,84794.0,0.13202558]
[1743560026935,0.13651576,84795.0,84794.0,0.13202558]
[1743560027137,0.00624001,84795.0,84794.0,0.13202558]
[1743560027541,0.05094001,84795.0,84794.0,0.13202558]
[1743560028738,0.1,84800.0,84798.0,0.1179367]
[1743560028930,0.1,84800.0,84799.0,0.1638353]
[1743560029244,0.1,84800.0,84799.0,0.2110753]
[1743560029943,0.105,84800.0,84799.0,0.2110753]
[1743560030536,0.105,84800.0,84799.0,0.1654753]
[1743560031745,0.1,84800.0,84799.0,0.1664753]
[1743560033144,0.1,84800.0,84799.0,0.1654753]
[1743560033549,0.22365383,84800.0,84799.0,0.1654753]
[1743560034143,0.22365383,84800.0,84799.0,0.1195753]
[1743560034948,0.22365383,84800.0,84799.0,0.1205753]
[1743560035553,0.22365383,84800.0,84799.0,0.1195753]
[1743560036852,0.34158773,84800.0,84799.0,0.00164]
[1743560037048,0.117945,84792.0,84791.0,0.00017693]
[1743560037350,0.117945,84792.0,84791.0,0.00181693]
[1743560037552,0.24419374,84792.0,84791.0,0.00177693]
[1743560037854,0.24419374,84792.0,84791.0,0.11812333]
[1743560038056,0.12624874,84792.0,84791.0,0.11972333]
[1743560038453,0.24884019,84793.0,84792.0,0.117945]
[1743560038759,0.24884019,84793.0,84792.0,0.00164]
[1743560038760,0.1179438,84793.0,84792.0,0.00164]
[1743560038939,0.2083438,84793.0,84792.0,0.117945]
[1743560039142,0.33924019,84793.0,84792.0,0.117945]
[1743560039443,0.17559639,84793.0,84792.0,0.119625]
[1743560039647,0.0457,84798.0,84797.0,0.1179381]
[1743560039838,0.1,84800.0,84799.0,0.1179353]
[1743560040238,0.1,84800.0,84799.0,0.1195753]
[1743560040952,0.0004,84831.0,84799.0,0.1195753]
[1743560040953,0.0004,84831.0,84802.0,0.0589649]
[1743560041143,0.29790918,84819.0,84814.0,0.4787144]
[1743560041345,0.25330918,84819.0,84818.0,0.1179089]
[1743560041542,0.0004,84831.0,84830.0,0.1178922]
[1743560041743,0.0004,84831.0,84830.0,0.4802922]
[1743560041943,0.12357356,84831.0,84830.0,0.0016]
[1743560042150,0.24146556,84831.0,84825.0,0.0459]
[1743560042354,0.1178937,84829.0,84828.0,0.1178941]
[1743560042556,0.2487931,84830.0,84829.0,0.1178936]
[1743560042747,0.2487931,84830.0,84829.0,0.1195336]
[1743560042947,0.37745232,84830.0,84829.0,0.00164]
[1743560043153,0.1178964,84828.0,84827.0,0.1178954]
[1743560043361,0.37745232,84830.0,84829.0,0.1178936]
[1743560043654,0.37745232,84830.0,84829.0,0.0016]
[1743560043655,0.2041931,84830.0,84829.0,0.0016]
[1743560043958,0.2041931,84830.0,84822.0,0.05912822]
[1743560043959,0.1179019,84823.0,84822.0,0.00017682]
[1743560044347,0.24855662,84823.0,84822.0,0.00017682]
[1743560045356,0.60935662,84823.0,84822.0,0.00177682]
[1743560045661,0.1179178,84814.0,84813.0,0.1179126]
[1743560045848,0.1179178,84814.0,84813.0,0.2358252]
[1743560046043,0.1179178,84814.0,84813.0,0.2374252]
[1743560046044,0.25341447,84814.0,84813.0,0.2374252]
[1743560046244,0.13549667,84814.0,84813.0,0.2374252]
[1743560046552,0.0883,84815.0,84813.0,0.1195126]
[1743560046757,0.17950554,84815.0,84814.0,0.1179144]
[1743560046956,0.17950554,84815.0,84814.0,0.1195144]
[1743560047360,0.17950554,84815.0,84814.0,0.1659144]